lending/lending_fUSD_20250424
["ID","MTS","AMOUNT","RATE_DAILY","PERIOD"]
[358900947,1745535061605,-151.0,0.00045883,14]
[358900948,1745535061614,-152.120952,0.00045883,14]
[358900949,1745535061624,-152.120952,0.00045883,14]
[358900950,1745535061634,-374.84897064,0.00045883,2]
[358900951,1745535061644,-391.03547732,0.00045883,2]
[358900952,1745535061655,-201980.10276599,0.00045883,2]
[358900953,1745535061664,-122168.20513597,0.00045883,2]
[358900954,1745535061674,-1210.0,0.00045883,2]
[358900955,1745535061684,-704.24436266,0.00045883,2]
[358900956,1745535061693,-362.65206509,0.00045883,2]
[358900957,1745535061703,-348.77059043,0.00045883,2]
[358900958,1745535061713,-762.66446964,0.00045883,2]
[358900959,1745535061723,-22680.49703977,0.00045883,2]
[358900960,1745535061733,-1522.87572211,0.00045883,2]
[358900961,1745535061743,-1030.92854914,0.00045883,2]
[358900962,1745535061752,-5191.61982702,0.00045883,2]
[358900963,1745535061762,-2458.75818249,0.00045883,2]
[358900964,1745535061772,-2708.68434712,0.00045883,2]
[358900965,1745535061782,-215849.84923721,0.00045883,2]
[358900966,1745535061793,-151.50950842,0.00045883,2]
[358900967,1745535061803,-43993.08532646,0.00045883,2]
[358900968,1745535061812,-249.4694075,0.00045883,2]
[358900969,1745535061822,-164.6419105,0.00045883,2]
[358900970,1745535061831,-3870.56646769,0.00045883,2]
[358900971,1745535061841,-1263.40664609,0.00045883,2]
[358900972,1745535061852,-7730.62243353,0.00045883,2]
[358900973,1745535061862,-29079.93887991,0.00045883,2]
[358900974,1745535061885,-1042.86026863,0.00045883,2]
[358900975,1745535061895,-32025.18598736,0.00045883,2]
[358900976,1745535061906,-595.60045886,0.00045883,2]
[358900977,1745535061916,-14710.59358839,0.00045883,2]
[358900978,1745535061927,-9246.36734406,0.00045883,2]
[358900979,1745535061938,-1313.37012597,0.00045883,2]
[358900980,1745535061948,-3423.46932032,0.00045883,2]
[358900981,1745535061958,-77093.61128742,0.00045883,2]
[358900982,1745535061969,-12848.86372875,0.00045883,2]
[358900983,1745535061979,-1922.73974566,0.00045883,2]
[358900984,1745535061989,-184.31440385,0.00045883,2]
[358900985,1745535062001,-5026.16131573,0.00045883,2]
[358900986,1745535062013,-643.0,0.00045883,2]
[358900987,1745535062024,-971.60453121,0.00045883,2]
[358900988,1745535062034,-8641.6344802,0.00045883,2]
[358900989,1745535062046,-1024.40987509,0.00045883,7]
[358900990,1745535062056,-25381.84791846,0.00045883,2]
[358900991,1745535062067,-573.99284371,0.00045883,2]
[358900992,1745535062078,-1838.74573505,0.00045883,2]
[358900993,1745535062090,-3246.65949871,0.00045883,2]
[358900994,1745535062100,-175.67942954,0.00045883,2]
[358900995,1745535062111,-154.6914517,0.00045883,2]
[358900996,1745535062121,-7093.66153787,0.00045883,2]
[358900997,1745535062132,-550.0,0.00045883,2]
[358900998,1745535062142,-1468.81589907,0.00045883,2]
[358900999,1745535062152,-1009.81414602,0.00045883,2]
[358901000,1745535062162,-804.49337173,0.00045883,2]
[358901001,1745535062173,-10716.90112229,0.00045883,2]
[358901002,1745535062183,-157504.20264078,0.00045883,2]
[358901003,1745535062998,-12265.62736249,0.00045883,2]
[358901004,1745535063652,-523.0,0.00025068,2]
[358901005,1745535063663,-534.265,0.00025258,2]
[358901006,1745535063675,-152.120952,0.00035,7]
[358901007,1745535063686,-152.120952,0.0003753,7]
[358901008,1745535063697,-152.120952,0.0003899,14]
[358901009,1745535063708,-152.120952,0.0004013,14]
[358901010,1745535063718,-152.120952,0.00042,14]
[358901011,1745535063729,-152.120952,0.00043881,14]
[358901012,1745535063739,-277.58994427,0.00045883,2]
[358901013,1745535063749,-4261.61323323,0.00045883,2]
[358901014,1745535063762,-934.45,0.00045883,2]
[358901015,1745535063775,-2960.6000002,0.00045883,2]
[358901016,1745535063788,-1680.606,0.00045883,2]
[358901022,1745535831772,250.0,0.00017,2]
[358901023,1745535832878,300.0,0.00019,2]
[358901080,1745536192366,199.43,0.00037808,60]
[358901082,1745536232184,-159.65317865,0.000193,2]
[358901083,1745536232196,-250.0,0.00019473,2]
[358901084,1745536232207,-206.19772136,0.00019799,2]
[358901085,1745536232216,-475.96967193,0.00019799,2]
[358901086,1745536232228,-724.03032807,0.00019799,2]
[358901087,1745536232238,-300.0,0.00019799,2]
[358901088,1745536232250,-1486.5717372,0.000198,2]
[358901089,1745536232264,-831.86817466,0.000198,2]
[358901090,1745536232327,-10830.27238814,0.000198,2]
[358901091,1745536232336,-11486.4002,0.000198,2]
[358901092,1745536232347,-6087.64157922,0.00019886,2]
[358901093,1745536232357,-1278.65241264,0.00019891,2]
[358901094,1745536232367,-17436.40310697,0.00019898,2]
[358901095,1745536232377,-4758.68390666,0.00019905,2]
[358901096,1745536232387,-8414.22211615,0.00019908,2]
[358901097,1745536232399,-2335.84820196,0.0001992,2]
[358901098,1745536232409,-916.87455664,0.00019921,2]
[358901099,1745536232418,-314.30497101,0.00019923,2]
[358901100,1745536232428,-2163.62136614,0.0001994,2]
[358901101,1745536232438,-6053.67935715,0.0001994,2]
[358901103,1745536232448,-6282.08061312,0.00019941,2]
[358901105,1745536232457,-2335.84820196,0.00019943,2]
[358901107,1745536232467,-5569.00994171,0.00019949,2]
[358901109,1745536232480,-4850.28411975,0.00019949,2]
[358901111,1745536232490,-1278.65241264,0.00019951,2]
[358901113,1745536232500,-3115.96269604,0.00019951,2]
[358901115,1745536232510,-10419.29406146,0.00019954,2]
[358901117,1745536232519,-8414.22211615,0.0001996,2]
[358901119,1745536232530,-6294.4118165,0.00019961,2]
[358901121,1745536232539,-2163.62136614,0.00019966,2]
[358901123,1745536232549,-6282.08061312,0.0001997,2]
[358901125,1745536232559,-6087.64157922,0.00019971,2]
[358901127,1745536232569,-6294.4118165,0.00019972,2]
[358901129,1745536232578,-17436.40310697,0.00019977,2]
[358901131,1745536232588,-3115.96269604,0.00019985,2]
[358901133,1745536232598,-6053.67935715,0.00019988,2]
[358901135,1745536232608,-4758.68390666,0.00019994,2]
[358901137,1745536232617,-500.0,0.000206,2]
[358901139,1745536232626,-504.05263074,0.000206,2]
[358901141,1745536232636,-500.0,0.000206,2]
[358901143,1745536232645,-3512.06333659,0.000209,3]
[358901145,1745536232661,-553.55,0.000209,3]
[358901148,1745536232672,-443.42,0.000209,3]
[358901155,1745536232729,-4898.16291381,0.000209,3]
[358901157,1745536232738,-350.0,0.00021,2]
[358901159,1745536232748,-250.0,0.0002131,2]
[358901161,1745536232758,-200.0,0.0002131,2]
[358901162,1745536232768,-150.99,0.0002131,2]
[358901165,1745536232779,-181.66,0.000215,2]
[358901167,1745536232788,-420.0,0.00021563,2]
[358901169,1745536232798,-1680.0,0.00021667,2]
[358901170,1745536232808,-2046.25,0.000219,2]
[358901172,1745536232817,-9407.19625015,0.00022038,3]
[358901174,1745536232827,-3753.32629589,0.00022126,2]
[358901177,1745536232837,-14564.44433137,0.00022136,2]
[358901179,1745536232847,-400.0,0.00023,2]
[358901181,1745536232857,-9407.19625015,0.00023176,4]
[358901183,1745536232867,-587.0,0.00023485,2]
[358901184,1745536232877,-2351.0,0.00023711,2]
[358901186,1745536232887,-250.0,0.00024312,2]
[358901187,1745536232896,-9407.19625015,0.00024314,5]
[358901189,1745536232906,-150.0,0.00024799,2]
[358901191,1745536232915,-450.0,0.00025,2]
[358901192,1745536232924,-727.1486,0.00025259,2]
[358901193,1745536232935,-2314.5610535,0.00025359,2]
[358901194,1745536232945,-500.0,0.00025425,2]
[358901195,1745536232955,-9407.19625015,0.00025452,6]
[358901196,1745536232966,-392.0,0.00025948,2]
[358901197,1745536232976,-1000.0,0.00026079,2]
[358901198,1745536232986,-1000.0,0.00026079,2]
[358901199,1745536232997,-2262.8,0.00026125,2]
[358901200,1745536233006,-198.901,0.00026157,2]
[358901201,1745536233016,-876.0,0.00026157,2]
[358901202,1745536233027,-150.0,0.00026169,2]
[358901203,1745536233037,-2157.86662176,0.00026301,2]
[358901204,1745536233047,-9407.19625015,0.0002659,6]
[358901205,1745536233057,-178.4,0.00026868,2]
[358901206,1745536233067,-500.0,0.00027,2]
[358901207,1745536233076,-3433.04861672,0.00027346,2]
[358901208,1745536233086,-154.883,0.00027357,2]
[358901209,1745536233096,-918.0,0.00027357,2]
[358901210,1745536233106,-796.0,0.00027357,2]
[358901211,1745536233117,-910.0,0.00027357,2]
[358901212,1745536233127,-1445.0,0.00027357,2]
[358901213,1745536233137,-262.543,0.00027357,2]
[358901214,1745536233146,-150.0,0.00027539,2]
[358901215,1745536233157,-9407.19625015,0.00027728,7]
[358901216,1745536233167,-1062.17,0.00027843,30]
[358901217,1745536233177,-203.2607,0.00028765,2]
[358901218,1745536233189,-2814.8303,0.00028785,2]
[358901219,1745536233199,-9407.19625015,0.00028866,8]
[358901220,1745536233209,-150.0,0.00028909,2]
[358901221,1745536233219,-250.0,0.00028953,2]
[358901222,1745536233229,-534.84,0.00028977,2]
[358901223,1745536233239,-550.0,0.00029,2]
[358901224,1745536233249,-152.0,0.00029157,2]
[358901225,1745536233259,-876.0,0.00029157,2]
[358901226,1745536233268,-3366.8658,0.00029524,2]
[358901227,1745536233278,-500.0,0.00029858,2]
[358901228,1745536233288,-3687.0965991,0.00030003,9]
[358901260,1745536238854,-5720.09965105,0.00030003,9]
[358901262,1745536238864,-150.0,0.00030279,2]
[358901264,1745536238874,-178.22,0.00030291,2]
[358901266,1745536238883,-150.0,0.00030357,2]
[358901268,1745536238892,-918.0,0.00030357,2]
[358901270,1745536238902,-796.0,0.00030357,2]
[358901272,1745536238911,-1364.242,0.00030357,2]
[358901274,1745536238921,-1000.0,0.00030559,2]
[358901276,1745536238930,-600.0,0.00031,2]
[358901278,1745536238944,-103.46857195,0.00031141,9]
[358901439,1745536240475,-9303.7276782,0.00031141,9]
[358901441,1745536240485,-500.0,0.00031173,5]
[358901443,1745536240494,-500.0,0.00031173,5]
[358901445,1745536240504,-23900.0,0.0003118,2]
[358901447,1745536240513,-590.48712661,0.00031282,24]
[358901449,1745536240523,-172.37,0.00031382,14]
[358901451,1745536240532,-150.0,0.00031649,2]
[358901453,1745536240541,-785.42,0.00032,2]
[358901455,1745536240551,-152.0,0.00032157,2]
[358901457,1745536240560,-876.0,0.00032157,2]
[358901458,1745536240570,-9407.19625015,0.00032279,10]
[358901459,1745536240580,-241.86,0.00032347,2]
[358901460,1745536240589,-545.0,0.000325,7]
[358901461,1745536240598,-150.0,0.00032877,2]
[358901462,1745536240608,-150.06,0.00032877,30]
[358901463,1745536240617,-650.0,0.00033,2]
[358901464,1745536240627,-785.42,0.00033,2]
[358901465,1745536240637,-150.0,0.00033018,2]
[358901466,1745536240647,-150.0,0.00033357,2]
[358901467,1745536240656,-918.0,0.00033357,2]
[358901468,1745536240665,-796.0,0.00033357,2]
[358901469,1745536240674,-500.0,0.0003341,5]
[358901470,1745536240683,-9407.19625015,0.00033417,11]
[358901471,1745536240693,-150.0,0.00033742,2]
[358901472,1745536240702,-8296.37607205,0.00033838,2]
[358901473,1745536240711,-40128.2663,0.00033938,2]
[358901474,1745536240720,-7831.41535188,0.00033938,2]
[358901475,1745536240732,-4068.68994812,0.00033938,2]
[358901476,1745536240743,-1000.0,0.00034378,2]
[358901478,1745536240752,-150.0,0.00034388,2]
[358901480,1745536240761,-9407.19625015,0.00034555,12]
[358901482,1745536240772,-150.0,0.00034607,2]
[358901484,1745536240781,-241.86,0.00034611,2]
[358901486,1745536240791,-164.0,0.0003498,7]
[358901488,1745536240800,-248.67479988,0.0003498,7]
[358901490,1745536240811,-65.32520012,0.0003498,7]
[358901492,1745536240821,-195.32,0.0003498,14]
[358901494,1745536240830,-208.31,0.0003498,7]
[358901496,1745536240839,-700.0,0.00035,2]
[358901498,1745536240848,-785.41405514,0.00035,2]
[358901500,1745536240857,-876.0,0.00035157,2]
[358901502,1745536240867,-150.0,0.00035472,2]
[358901504,1745536240876,-8296.37607202,0.00035639,2]
[358901506,1745536240886,-9407.19625015,0.00035693,12]
[358901508,1745536240895,-150.0,0.00035758,2]
[358901510,1745536240904,-870.74038935,0.00036098,2]
[358901512,1745536240913,-150.0,0.00036337,2]
[358901514,1745536240922,-796.0,0.00036357,2]
[358901516,1745536240932,-1062.17,0.00036558,30]
[358901518,1745536240945,-24989.3707188,0.00036565,3]
[358901520,1745536240955,-2262.8,0.00036575,2]
[358901522,1745536240964,-1000.0,0.00036652,5]
[358901524,1745536240973,-1000.0,0.00036652,5]
[358901526,1745536240985,-9407.19625015,0.00036831,13]
[358901528,1745536240995,-241.86,0.00036875,2]
[358901530,1745536241004,-750.0,0.00037,2]
[358901532,1745536241014,-150.0,0.00037128,2]
[358901534,1745536241024,-150.0,0.00037203,2]
[358901536,1745536241033,-500.0,0.00037248,2]
[358901538,1745536241044,-17301.9415,0.00037355,2]
[358901540,1745536241054,-8296.37607202,0.0003744,2]
[358901542,1745536241063,-1057.355,0.00037631,49]
[358901544,1745536241072,-3624.11244173,0.00037869,2]
[358901546,1745536241082,-9407.19625015,0.00037969,14]
[358901548,1745536241091,-150.0,0.00038068,2]
[358901551,1745536241100,-876.0,0.00038157,2]
[358901553,1745536241110,-1000.0,0.00038198,2]
[358901555,1745536241119,-366.78179429,0.00038356,2]
[358901557,1745536241128,-150.0,0.00038498,2]
[358901558,1745536241138,-150.0,0.00038713,5]
[358901560,1745536241147,-499.09477457,0.00038713,5]
[358901562,1745536241157,-150.23279255,0.00038713,5]
[358901564,1745536241166,-1000.0,0.00038889,5]
[358901566,1745536241176,-682.0,0.000389,2]
[358901568,1745536241185,-250.0,0.00038904,30]
[358901570,1745536241194,-150.0,0.00038933,2]
[358901572,1745536241203,-457.8303,0.00038957,30]
[358901574,1745536241214,-357.599999,0.00039,58]
[358901576,1745536241223,-357.6,0.00039,58]
[358901578,1745536241233,-800.0,0.00039,2]
[358901580,1745536241242,-24989.3707188,0.00039097,3]
[358901582,1745536241252,-9407.19625015,0.00039107,15]
[358901584,1745536241262,-241.86,0.00039139,2]
[358901586,1745536241271,-3624.11244165,0.00039234,2]
[358901589,1745536241281,-8296.37607202,0.00039241,2]
[358901591,1745536241290,-151.0,0.0003926,5]
[358901592,1745536241299,-796.0,0.00039357,2]
[358901594,1745536241309,-24989.3707188,0.00039627,3]
[358901596,1745536241319,-31712.49005494,0.00039637,2]
[358901603,1745536241366,-23233.48794506,0.00039637,2]
[358901604,1745536241376,-2897.6829,0.00039637,2]
[358901605,1745536241387,-613.64422382,0.00039726,15]
[358901606,1745536241396,-150.0,0.00039798,2]
[358901607,1745536241406,-152.0,0.00039808,5]
[358901608,1745536241416,-469.0,0.00039868,5]
[358901609,1745536241426,-150.0,0.00039868,2]
[358901610,1745536241436,-200.0,0.0004,61]
[358901611,1745536241446,-200.0,0.0004,61]
[358901612,1745536241456,-157.75,0.0004,30]
[358901613,1745536241466,-534.84,0.0004021,2]
[358901614,1745536241475,-642.39253438,0.00040245,15]
[358901615,1745536241487,-8764.80371577,0.00040245,15]
[358901616,1745536241497,-201.0,0.00040356,5]
[358901617,1745536241506,-500.0,0.00040548,7]
[358901618,1745536241516,-500.0,0.00040548,7]
[358901619,1745536241526,-500.0,0.00040548,7]
[358901620,1745536241535,-500.0,0.00040548,7]
[358901621,1745536241545,-583.0,0.00040548,7]
[358901622,1745536241554,-150.0,0.00040548,7]
[358901623,1745536241563,-150.0,0.00040548,7]
[358901624,1745536241573,-3624.11244165,0.00040598,15]
[358901625,1745536241583,-1333.0,0.00040658,120]
[358901626,1745536241592,-150.0,0.00040663,2]
[358901627,1745536241601,-500.0,0.00040822,7]
[358901628,1745536241611,-500.0,0.00040822,7]
[358901629,1745536241620,-500.0,0.00040822,7]
[358901630,1745536241630,-500.0,0.00040822,7]
[358901631,1745536241639,-583.0,0.00040822,7]
[358901632,1745536241649,-150.0,0.00040822,7]
[358901633,1745536241659,-291.0362588,0.00040822,7]
[358901634,1745536241668,-185.47,0.000409,31]
[358901635,1745536241678,-185.47,0.000409,31]
[358901636,1745536241687,-185.47,0.000409,31]
[358901637,1745536241698,-185.47,0.000409,31]
[358901638,1745536241708,-185.47,0.000409,31]
[358901639,1745536241717,-185.47,0.000409,31]
[358901640,1745536241727,-185.47,0.000409,31]
[358901641,1745536241737,-185.47,0.000409,31]
[358901642,1745536241747,-185.47,0.000409,31]
[358901643,1745536241758,-185.47,0.000409,31]
[358901644,1745536241767,-185.47,0.000409,31]
[358901645,1745536241776,-185.47,0.000409,31]
[358901646,1745536241786,-200.0,0.00041,64]
[358901647,1745536241796,-200.0,0.00041,64]
[358901648,1745536241806,-155.0,0.00041,14]
[358901649,1745536241817,-850.0,0.00041,2]
[358901650,1745536241828,-8296.37607202,0.00041042,15]
[358901651,1745536241838,-17089.1235085,0.00041085,3]
[358901654,1745536241996,-710.77663009,0.00041085,3]
[358901656,1745536242007,-2342.25015,0.00041085,3]
[358901800,1745536243864,-913.5,0.00038957,30]
[358901801,1745536243874,-4847.22043021,0.00041085,3]
[358901802,1745536243883,-1301.63167735,0.00041095,2]
[358901803,1745536243895,-698.36832265,0.00041095,2]
[358901804,1745536243904,-2000.0,0.00041095,2]
[358901805,1745536243913,-2000.0,0.00041095,2]
[358901806,1745536243923,-2000.0,0.00041095,2]
[358901807,1745536243932,-2000.0,0.00041095,2]
[358901808,1745536243945,-2000.0,0.00041095,2]
[358901809,1745536243955,-2000.0,0.00041095,2]
[358901810,1745536243964,-2000.0,0.00041095,2]
[358901812,1745536243975,-2000.0,0.00041095,2]
[358901813,1745536243986,-2000.0,0.00041095,2]
[358901815,1745536243995,-2000.0,0.00041095,2]
[358901816,1745536244005,-2000.0,0.00041095,2]
[358901818,1745536244014,-617.27316154,0.00041095,2]
[358901820,1745536244024,-2000.0,0.00041096,10]
[358901822,1745536244034,-281.0,0.00041096,30]
[358901824,1745536244044,-500.0,0.00041096,7]
[358901826,1745536244054,-500.0,0.00041096,7]
[358901828,1745536244063,-500.0,0.00041096,7]
[358901831,1745536244074,-500.0,0.00041096,7]
[358901833,1745536244084,-583.0,0.00041096,7]
[358901835,1745536244093,-150.0,0.00041096,7]
[358901837,1745536244103,-876.0,0.00041157,2]
[358901839,1745536244113,-150.0,0.00041238,120]
[358901841,1745536244123,-500.0,0.00041267,30]
[358901843,1745536244132,-500.0,0.0004137,7]
[358901845,1745536244142,-228.29919569,0.0004137,7]
[358901847,1745536244151,-500.0,0.0004137,7]
[358901848,1745536244160,-213.22719017,0.0004137,7]
[358901850,1745536244170,-583.0,0.0004137,7]
[358901852,1745536244180,-150.0,0.0004137,7]
[358901854,1745536244190,-9407.19625015,0.00041383,16]
[358901856,1745536244200,-241.86,0.00041403,2]
[358901857,1745536244210,-500.0,0.00041439,30]
[358901858,1745536244219,-500.0,0.00041484,30]
[358901859,1745536244229,-454.17,0.000415,14]
[358901860,1745536244239,-150.0,0.00041528,2]
[358901861,1745536244249,-551.86810713,0.000416,30]
[358901862,1745536244259,-500.0,0.00041644,7]
[358901863,1745536244268,-500.0,0.00041644,7]
[358901864,1745536244290,-583.0,0.00041644,7]
[358901865,1745536244302,-150.0,0.00041644,7]
[358901866,1745536244312,-580.81202636,0.00041918,7]
[358901867,1745536244330,-500.0,0.00041918,7]
[358901868,1745536244340,-583.0,0.00041918,7]
[358901869,1745536244350,-250.0,0.00041918,7]
[358901870,1745536244360,-3624.11244165,0.00041963,15]
[358901871,1745536244370,-24989.3707188,0.00041982,3]
[358901872,1745536244380,-36194.63,0.00041992,2]
[358901873,1745536244390,-1000.0,0.00041992,2]
[358901874,1745536244401,-1957.27,0.00042,2]
[358901875,1745536244411,-409.89,0.00042,2]
[358901876,1745536244421,-200.0,0.00042,67]
[358901877,1745536244431,-200.0,0.00042,67]
[358901878,1745536244441,-1000.0,0.00042018,2]
[358901879,1745536244451,-1957.27,0.000421,2]
[358901880,1745536244461,-409.89,0.000421,2]
[358901881,1745536244471,-500.0,0.00042192,7]
[358901882,1745536244482,-583.0,0.00042192,7]
[358901883,1745536244492,-1957.27,0.000422,2]
[358901884,1745536244502,-409.89,0.000422,2]
[358901885,1745536244514,-185.47,0.000423,33]
[358901886,1745536244524,-185.47,0.000423,33]
[358901887,1745536244534,-185.47,0.000423,33]
[358901888,1745536244544,-185.47,0.000423,33]
[358901889,1745536244554,-185.47,0.000423,33]
[358901890,1745536244564,-185.47,0.000423,33]
[358901891,1745536244574,-185.47,0.000423,33]
[358901892,1745536244585,-185.47,0.000423,33]
[358901893,1745536244595,-185.47,0.000423,33]
[358901894,1745536244605,-185.47,0.000423,33]
[358901895,1745536244616,-185.47,0.000423,33]
[358901896,1745536244626,-185.47,0.000423,33]
[358901897,1745536244636,-185.47,0.000423,33]
[358901898,1745536244646,-185.47,0.000423,33]
[358901899,1745536244656,-185.47,0.000423,33]
[358901900,1745536244667,-185.47,0.000423,33]
[358901901,1745536244677,-185.47,0.000423,33]
[358901902,1745536244687,-185.47,0.000423,33]
[358901903,1745536244697,-185.47,0.000423,33]
[358901904,1745536244707,-185.47,0.000423,33]
[358901905,1745536244716,-185.47,0.000423,33]
[358901907,1745536244726,-185.47,0.000423,33]
[358901910,1745536244742,-185.47,0.000423,33]
[358901912,1745536244752,-185.47,0.000423,33]
[358901914,1745536244762,-796.0,0.00042357,2]
[358901916,1745536244772,-379.3061,0.00042365,2]
[358901918,1745536244782,-150.0,0.00042394,2]
[358901921,1745536244792,-500.0,0.00042416,30]
[358901923,1745536244802,-200.0,0.00042458,6]
[358901925,1745536244812,-200.0,0.00042462,6]
[358901927,1745536244822,-1201.94117979,0.00042462,6]
[358901929,1745536244832,-1201.94117979,0.00042462,6]
[358901931,1745536244842,-429.58099755,0.00042463,6]
[358901933,1745536244852,-1670.62037165,0.00042464,6]
[358901935,1745536244862,-500.0,0.00042466,7]
[358901937,1745536244871,-583.0,0.00042466,7]
[358901970,1745536244881,-200.0,0.00042471,6]
[358901978,1745536245267,-429.58099755,0.00042471,6]
[358901980,1745536245278,-200.0,0.00042471,6]
[358901982,1745536245288,-618.6657168,0.00042472,6]
[358901984,1745536245297,-253.87287603,0.00042474,6]
[358901986,1745536245307,-253.87287603,0.00042474,6]
[358901988,1745536245318,-463.77615624,0.00042474,6]
[358901991,1745536245328,-1208.68428441,0.00042479,6]
[358901993,1745536245338,-200.0,0.00042481,6]
[358901995,1745536245348,-944.82343901,0.0004249,6]
[358901997,1745536245359,-463.77615624,0.0004249,6]
[358901999,1745536245369,-253.87287603,0.00042491,6]
[358902001,1745536245379,-200.0,0.00042492,6]
[358902003,1745536245389,-200.0,0.00042497,6]
[358902005,1745536245400,-1201.94117979,0.00042505,6]
[358902007,1745536245410,-1249.73793927,0.00042505,6]
[358902009,1745536245420,-1201.94117979,0.00042506,6]
[358902011,1745536245430,-200.0,0.00042506,6]
[358902013,1745536245440,-944.82343901,0.00042507,6]
[358902015,1745536245450,-200.0,0.00042508,6]
[358902017,1745536245459,-200.0,0.00042509,6]
[358902019,1745536245469,-200.0,0.00042512,6]
[358902021,1745536245479,-1247.28961317,0.00042514,6]
[358902023,1745536245489,-1583.84713613,0.00042521,17]
[358902096,1745536246192,-3358.3249212,0.00042521,17]
[358902128,1745536246500,-2751.68650369,0.00042521,17]
[358902296,1745536310144,-1500.0,0.000197,2]
[358902302,1745536755734,533.0,0.00037808,60]
[358902335,1745537102541,500.0,0.00037808,60]
[358902349,1745537175652,500.0,0.00037808,60]
[358902350,1745537190901,1000.0,0.00037808,60]
[358902351,1745537211507,1255.66,0.00037808,60]
[358902352,1745537227444,500.0,0.00037808,60]
[358902353,1745537235654,500.0,0.00037808,60]
[358902354,1745537244015,250.96657119,0.000101,2]
[358902362,1745537250710,480.85261419,0.0001,2]
[358902364,1745537263803,1000.0,0.00037808,60]
[358902365,1745537278842,6232.18675983,0.0001,2]
[358902366,1745537278866,8054.18449355,0.0001,2]
[358902367,1745537283129,500.0,0.00037808,60]
[358902368,1745537299076,200.0,0.0001634,2]
[358902369,1745537300773,194.65874869,0.000135,2]
[358902370,1745537310465,378.30440357,7.888e-05,2]
[358902371,1745537319899,1000.0,0.00037808,60]
[358902372,1745537323872,259.1260173,0.000107,2]
[358902373,1745537328254,913.72633689,0.00013368,2]
[358902374,1745537328278,7219.88786168,0.00013368,2]
[358902375,1745537339653,1000.0,0.00037808,60]
[358902391,1745537348365,2780.11213832,7.945e-05,2]
[358902392,1745537348388,7336.63539868,7.945e-05,2]
[358902393,1745537357859,1000.0,0.00037808,60]
[358902398,1745537375923,2000.0,0.00037808,60]
[358902399,1745537379935,-722.363984,0.00019305,2]
[358902400,1745537379957,-1678.31715218,0.000195,2]
[358902401,1745537379979,-250.0,0.000198,2]
[358902402,1745537380000,-200.0,0.000198,2]
[358902403,1745537380022,-2121.67273915,0.00019883,2]
[358902404,1745537380045,-5027.64612467,0.00019893,2]
[358902405,1745537381948,-10000.0,0.00019893,2]
[358902406,1745537382912,-10000.0,0.00019893,2]
[358902407,1745537383343,-9047.77495362,0.00019893,2]
[358902408,1745537383366,-952.22504638,0.00019899,2]
[358902412,1745537383895,-358.14466159,0.00019899,2]
[358902413,1745537383918,-300.0,0.00019899,2]
[358902414,1745537383939,-6514.9063,0.000199,2]
[358902415,1745537383963,-2826.94903841,0.000199,2]
[358902416,1745537384260,-1321.2389976,0.000199,2]
[358902418,1745537384283,-169.06102874,0.000199,2]
[358902420,1745537384304,-451.74618599,0.000199,2]
[358902421,1745537384327,-4529.92405458,0.00019905,2]
[358902423,1745537384349,-1319.15377777,0.00019922,2]
[358902424,1745537384371,-2208.87595532,0.00019928,2]
[358902425,1745537384761,-2321.04809926,0.00019928,2]
[358902426,1745537384783,-720.7764357,0.00019942,2]
[358902427,1745537384806,-1310.36970797,0.00019962,2]
[358902428,1745537384830,-5647.80575707,0.0001997,2]
[358902429,1745537385279,-10000.0,0.0001997,2]
[358902430,1745537385587,-10000.0,0.0001997,2]